[Event "Titled Tuesday Blitz February 07 Late 2023"]
[White "Alekseenko, Kirill"]
[Black "Taspinar, Yanki"]
[WhiteFideId "4135539"]
[BlackFideId "34561188"]
[WhiteElo "2686"]
[BlackElo "2262"]
[Result "0-1"]
[Round "03"]
[TimeControl "180+2"]
[Date "2023.02.07"]
[WhiteClock "0:00:29"]
[BlackClock "0:00:13"]

1. d4 {[%clk 0:03:00]}  Nf6 {[%clk 0:02:59]} 2. Nc3 {[%clk 0:03:01]}  g6 {[%clk 0:02:57]} 3. e4 {[%clk 0:02:59]}  d6 {[%clk 0:02:58]} 4. f4 {[%clk 0:02:59]}  Bg7 {[%clk 0:02:57]} 5. Nf3 {[%clk 0:03:00]}  O-O {[%clk 0:02:57]} 6. Bd3 {[%clk 0:02:59]}  a6 {[%clk 0:02:56]} 7. e5 {[%clk 0:02:58]}  Nfd7 {[%clk 0:02:53]} 8. h4 {[%clk 0:02:58]}  dxe5 {[%clk 0:02:41]} 9. fxe5 {[%clk 0:02:45]}  c5 {[%clk 0:02:35]} 10. h5 {[%clk 0:02:35]}  cxd4 {[%clk 0:02:26]} 11. hxg6 {[%clk 0:02:34]}  dxc3 {[%clk 0:01:52]} 12. Ng5 {[%clk 0:02:17]}  Qa5 {[%clk 0:00:29]} 13. gxf7+ {[%clk 0:01:29]}  Rxf7 {[%clk 0:00:28]} 14. Nxf7 {[%clk 0:01:04]}  Nxe5 {[%clk 0:00:10]} 15. b4 {[%clk 0:00:53]}  Nxd3+ {[%clk 0:00:03]} 16. Qxd3 {[%clk 0:00:53]}  Qf5 {[%clk 0:00:03]} 17. Qd8+ {[%clk 0:00:40]}  Kxf7 {[%clk 0:00:03]} 18. Rf1 {[%clk 0:00:40]}  Qxf1+ {[%clk 0:00:02]} 19. Kxf1 {[%clk 0:00:41]}  Nc6 {[%clk 0:00:02]} 20. Bg5 {[%clk 0:00:28]}  Nxd8 {[%clk 0:00:01]} 21. Rd1 {[%clk 0:00:27]}  Bf5 {[%clk 0:00:02]} 22. Ke2 {[%clk 0:00:23]}  Bg6 {[%clk 0:00:03]} 23. Rf1+ {[%clk 0:00:24]}  Kg8 {[%clk 0:00:03]} 24. Bxe7 {[%clk 0:00:24]}  Nc6 {[%clk 0:00:04]} 25. Bc5 {[%clk 0:00:25]}  Re8+ {[%clk 0:00:04]} 26. Kd1 {[%clk 0:00:25]}  Rd8+ {[%clk 0:00:05]} 27. Kc1 {[%clk 0:00:25]}  Bh6+ {[%clk 0:00:05]} 28. Kb1 {[%clk 0:00:26]}  Rd2 {[%clk 0:00:06]} 29. Ka1 {[%clk 0:00:26]}  Rxc2 {[%clk 0:00:06]} 30. g4 {[%clk 0:00:26]}  Rc1+ {[%clk 0:00:06]} 31. Rxc1 {[%clk 0:00:26]}  Bxc1 {[%clk 0:00:07]} 32. a4 {[%clk 0:00:27]}  Bb2+ {[%clk 0:00:08]} 33. Ka2 {[%clk 0:00:27]}  a5 {[%clk 0:00:07]} 34. b5 {[%clk 0:00:28]}  Nb4+ {[%clk 0:00:08]} 35. Kb3 {[%clk 0:00:28]}  Bc2+ {[%clk 0:00:08]} 36. Kc4 {[%clk 0:00:28]}  Bxa4 {[%clk 0:00:08]} 37. Bd4 {[%clk 0:00:29]}  Ba1 {[%clk 0:00:08]} 38. Be3 {[%clk 0:00:25]}  c2 {[%clk 0:00:08]} 39. Kc5 {[%clk 0:00:26]}  Bb2 {[%clk 0:00:07]} 40. Kb6 {[%clk 0:00:26]}  Bxb5 {[%clk 0:00:08]} 41. Kxb5 {[%clk 0:00:26]}  c1=Q {[%clk 0:00:09]} 42. Bxc1 {[%clk 0:00:27]}  Bxc1 {[%clk 0:00:10]} 43. Kxa5 {[%clk 0:00:28]}  Nd5 {[%clk 0:00:10]} 44. Kb5 {[%clk 0:00:27]}  Nf6 {[%clk 0:00:11]} 45. g5 {[%clk 0:00:27]}  Bxg5 {[%clk 0:00:12]} 46. Kb6 {[%clk 0:00:28]}  Kf7 {[%clk 0:00:12]} 47. Kxb7 {[%clk 0:00:29]}  Ke6 {[%clk 0:00:13]} 0-1


[Site "https://www.chess.com"]

[Event "Titled Tuesday Blitz February 07 Late 2023"]
[White "Tatarinov, Dmitry"]
[Black "Ibarra Jerez, Jose Carlos"]
[WhiteFideId "24160067"]
[BlackFideId "2226332"]
[WhiteElo "2310"]
[BlackElo "2563"]
[Result "1/2-1/2"]
[Round "03"]
[TimeControl "180+2"]
[Date "2023.02.07"]
[WhiteClock "0:00:13"]
[BlackClock "0:00:06"]

1. d4 {[%clk 0:02:59]}  Nf6 {[%clk 0:02:59]} 2. Nf3 {[%clk 0:02:59]}  g6 {[%clk 0:02:59]} 3. g3 {[%clk 0:02:59]}  d6 {[%clk 0:02:59]} 4. Bg2 {[%clk 0:02:59]}  Bg7 {[%clk 0:02:58]} 5. O-O {[%clk 0:03:00]}  O-O {[%clk 0:02:59]} 6. c4 {[%clk 0:03:00]}  Bf5 {[%clk 0:02:58]} 7. Nc3 {[%clk 0:02:59]}  Ne4 {[%clk 0:02:58]} 8. Nxe4 {[%clk 0:02:56]}  Bxe4 {[%clk 0:02:58]} 9. e3 {[%clk 0:02:55]}  c5 {[%clk 0:02:57]} 10. Bd2 {[%clk 0:02:54]}  Bd3 {[%clk 0:02:44]} 11. Re1 {[%clk 0:02:51]}  Bxc4 {[%clk 0:02:40]} 12. Qc2 {[%clk 0:02:46]}  Ba6 {[%clk 0:02:11]} 13. dxc5 {[%clk 0:02:44]}  dxc5 {[%clk 0:02:12]} 14. Qxc5 {[%clk 0:02:40]}  Bxb2 {[%clk 0:02:10]} 15. Rad1 {[%clk 0:02:34]}  Bf6 {[%clk 0:02:00]} 16. e4 {[%clk 0:02:09]}  Nd7 {[%clk 0:01:56]} 17. Qa3 {[%clk 0:02:06]}  Qc7 {[%clk 0:01:35]} 18. Rc1 {[%clk 0:02:00]}  Qb8 {[%clk 0:01:15]} 19. Bb4 {[%clk 0:01:37]}  Re8 {[%clk 0:01:15]} 20. e5 {[%clk 0:01:31]}  Nxe5 {[%clk 0:01:08]} 21. Nxe5 {[%clk 0:01:32]}  Bxe5 {[%clk 0:01:09]} 22. Bxe7 {[%clk 0:01:32]}  Bg7 {[%clk 0:00:55]} 23. h4 {[%clk 0:01:32]}  h5 {[%clk 0:00:47]} 24. Bd5 {[%clk 0:01:31]}  Be5 {[%clk 0:00:19]} 25. Re3 {[%clk 0:01:13]}  Kg7 {[%clk 0:00:20]} 26. Rce1 {[%clk 0:01:12]}  f6 {[%clk 0:00:20]} 27. Rxe5 {[%clk 0:00:50]}  fxe5 {[%clk 0:00:19]} 28. Bd6 {[%clk 0:00:50]}  Qd8 {[%clk 0:00:18]} 29. Rxe5 {[%clk 0:00:45]}  Rxe5 {[%clk 0:00:16]} 30. Bxe5+ {[%clk 0:00:46]}  Kh7 {[%clk 0:00:17]} 31. Qf3 {[%clk 0:00:45]}  Qe7 {[%clk 0:00:16]} 32. Bb2 {[%clk 0:00:17]}  Rf8 {[%clk 0:00:15]} 33. Qc3 {[%clk 0:00:16]}  Qd7 {[%clk 0:00:10]} 34. Be4 {[%clk 0:00:14]}  Qd1+ {[%clk 0:00:09]} 35. Kh2 {[%clk 0:00:09]}  Rxf2+ {[%clk 0:00:09]} 36. Bg2 {[%clk 0:00:10]}  Rxg2+ {[%clk 0:00:09]} 37. Kxg2 {[%clk 0:00:11]}  Qf1+ {[%clk 0:00:09]} 38. Kh2 {[%clk 0:00:12]}  Qf2+ {[%clk 0:00:10]} 39. Kh1 {[%clk 0:00:12]}  Qf1+ {[%clk 0:00:10]} 40. Kh2 {[%clk 0:00:13]}  Qe2+ {[%clk 0:00:10]} 41. Kh1 {[%clk 0:00:13]}  Qf1+ {[%clk 0:00:06]} 42. Kh2 {[%clk 0:00:13]} 1/2-1/2


[Site "https://www.chess.com"]

[Event "Titled Tuesday Blitz February 07 Late 2023"]
[White "Maksimovic, Bojan"]
[Black "Moussard, Jules"]
[WhiteFideId "14408120"]
[BlackFideId "642908"]
[WhiteElo "2486"]
[BlackElo "2644"]
[Result "1-0"]
[Round "03"]
[TimeControl "180+2"]
[Date "2023.02.07"]
[WhiteClock "0:00:07"]
[BlackClock "0:00:03"]

1. e4 {[%clk 0:03:00]}  c5 {[%clk 0:02:49]} 2. Nf3 {[%clk 0:03:01]}  a6 {[%clk 0:02:47]} 3. c3 {[%clk 0:03:00]}  d5 {[%clk 0:02:46]} 4. exd5 {[%clk 0:03:01]}  Nf6 {[%clk 0:02:46]} 5. d4 {[%clk 0:02:57]}  cxd4 {[%clk 0:02:43]} 6. Qa4+ {[%clk 0:02:55]}  Qd7 {[%clk 0:02:40]} 7. Qxd7+ {[%clk 0:02:46]}  Bxd7 {[%clk 0:02:11]} 8. c4 {[%clk 0:02:44]}  e6 {[%clk 0:02:10]} 9. dxe6 {[%clk 0:02:43]}  Bxe6 {[%clk 0:02:11]} 10. Nxd4 {[%clk 0:02:43]}  Nc6 {[%clk 0:02:07]} 11. Nxc6 {[%clk 0:01:41]}  bxc6 {[%clk 0:02:07]} 12. Nc3 {[%clk 0:01:41]}  O-O-O {[%clk 0:02:00]} 13. Bd2 {[%clk 0:01:42]}  Bc5 {[%clk 0:02:00]} 14. f3 {[%clk 0:01:42]}  Nd7 {[%clk 0:01:38]} 15. O-O-O {[%clk 0:01:34]}  Ne5 {[%clk 0:01:37]} 16. Ne4 {[%clk 0:01:31]}  Bd4 {[%clk 0:01:36]} 17. b3 {[%clk 0:01:18]}  h6 {[%clk 0:01:35]} 18. Be2 {[%clk 0:01:01]}  f5 {[%clk 0:01:28]} 19. Bc3 {[%clk 0:00:49]}  Be3+ {[%clk 0:01:23]} 20. Kb2 {[%clk 0:00:42]}  Nxc4+ {[%clk 0:00:57]} 21. Bxc4 {[%clk 0:00:36]}  Bxc4 {[%clk 0:00:57]} 22. Nd6+ {[%clk 0:00:32]}  Rxd6 {[%clk 0:00:58]} 23. Rxd6 {[%clk 0:00:33]}  Bd5 {[%clk 0:00:58]} 24. Re1 {[%clk 0:00:27]}  Re8 {[%clk 0:00:48]} 25. Rg6 {[%clk 0:00:22]}  f4 {[%clk 0:00:47]} 26. Rxg7 {[%clk 0:00:21]}  a5 {[%clk 0:00:43]} 27. g3 {[%clk 0:00:21]}  a4 {[%clk 0:00:42]} 28. bxa4 {[%clk 0:00:21]}  Rf8 {[%clk 0:00:24]} 29. gxf4 {[%clk 0:00:12]}  Bxf4 {[%clk 0:00:25]} 30. Ree7 {[%clk 0:00:12]}  Bd6 {[%clk 0:00:25]} 31. Rd7 {[%clk 0:00:11]}  Bb8 {[%clk 0:00:24]} 32. Rde7 {[%clk 0:00:05]}  Bd6 {[%clk 0:00:22]} 33. Ra7 {[%clk 0:00:05]}  Bb8 {[%clk 0:00:21]} 34. Ra8 {[%clk 0:00:05]}  c5 {[%clk 0:00:19]} 35. Ra5 {[%clk 0:00:03]}  Bd6 {[%clk 0:00:17]} 36. Ra6 {[%clk 0:00:02]}  Bxh2 {[%clk 0:00:13]} 37. Rxh6 {[%clk 0:00:03]}  Bf4 {[%clk 0:00:11]} 38. Rh5 {[%clk 0:00:03]}  Bxf3 {[%clk 0:00:09]} 39. Rxc5+ {[%clk 0:00:03]}  Kb8 {[%clk 0:00:10]} 40. Rb5+ {[%clk 0:00:03]}  Ka8 {[%clk 0:00:10]} 41. Ra5+ {[%clk 0:00:03]}  Kb8 {[%clk 0:00:11]} 42. Be5+ {[%clk 0:00:03]}  Bxe5+ {[%clk 0:00:11]} 43. Rxe5 {[%clk 0:00:04]}  Ka8 {[%clk 0:00:10]} 44. Ra5+ {[%clk 0:00:04]}  Kb8 {[%clk 0:00:10]} 45. Rb5+ {[%clk 0:00:05]}  Ka8 {[%clk 0:00:11]} 46. Ra5+ {[%clk 0:00:06]}  Kb8 {[%clk 0:00:11]} 47. Raa7 {[%clk 0:00:06]}  Bc6 {[%clk 0:00:11]} 48. Raf7 {[%clk 0:00:06]}  Rh8 {[%clk 0:00:11]} 49. a5 {[%clk 0:00:06]}  Bd5 {[%clk 0:00:08]} 50. Rd7 {[%clk 0:00:06]}  Bc6 {[%clk 0:00:08]} 51. Rde7 {[%clk 0:00:06]}  Rh2+ {[%clk 0:00:05]} 52. Kc3 {[%clk 0:00:06]}  Rh3+ {[%clk 0:00:05]} 53. Kb4 {[%clk 0:00:07]}  Rh8 {[%clk 0:00:05]} 54. Kc5 {[%clk 0:00:07]}  Bf3 {[%clk 0:00:05]} 55. a6 {[%clk 0:00:07]}  Rc8+ {[%clk 0:00:04]} 56. Kd4 {[%clk 0:00:06]}  Rd8+ {[%clk 0:00:04]} 57. Ke3 {[%clk 0:00:07]}  Bh1 {[%clk 0:00:04]} 58. a3 {[%clk 0:00:07]}  Rf8 {[%clk 0:00:03]} 59. Rgf7 {[%clk 0:00:08]}  Rg8 {[%clk 0:00:03]} 60. Kf4 {[%clk 0:00:08]}  Rg1 {[%clk 0:00:03]} 61. Rf8# {[%clk 0:00:07]} 1-0


[Site "https://www.chess.com"]

[Event "Titled Tuesday Blitz February 07 Late 2023"]
[White "Jones, Gawain C B"]
[Black "Czopor, Maciej"]
[WhiteFideId "409561"]
[BlackFideId "21805431"]
[WhiteElo "2618"]
[BlackElo "2385"]
[Result "1/2-1/2"]
[Round "03"]
[TimeControl "180+2"]
[Date "2023.02.07"]
[WhiteClock "0:00:04"]
[BlackClock "0:00:04"]

1. e4 {[%clk 0:03:00]}  g6 {[%clk 0:02:58]} 2. d4 {[%clk 0:03:00]}  c6 {[%clk 0:02:58]} 3. Nc3 {[%clk 0:03:00]}  Bg7 {[%clk 0:02:58]} 4. f4 {[%clk 0:02:59]}  d5 {[%clk 0:02:57]} 5. e5 {[%clk 0:03:00]}  Nh6 {[%clk 0:02:54]} 6. Nf3 {[%clk 0:03:00]}  Bg4 {[%clk 0:02:51]} 7. Be3 {[%clk 0:02:54]}  Nf5 {[%clk 0:02:45]} 8. Bf2 {[%clk 0:02:54]}  h5 {[%clk 0:02:46]} 9. h3 {[%clk 0:02:51]}  Bxf3 {[%clk 0:02:45]} 10. Qxf3 {[%clk 0:02:52]}  h4 {[%clk 0:02:45]} 11. O-O-O {[%clk 0:02:48]}  e6 {[%clk 0:02:44]} 12. Kb1 {[%clk 0:02:45]}  b5 {[%clk 0:02:30]} 13. Ne2 {[%clk 0:02:35]}  Nd7 {[%clk 0:02:26]} 14. Nc1 {[%clk 0:02:35]}  Bf8 {[%clk 0:02:10]} 15. Nb3 {[%clk 0:02:29]}  a5 {[%clk 0:02:06]} 16. Qc3 {[%clk 0:02:09]}  a4 {[%clk 0:01:51]} 17. Nc5 {[%clk 0:02:07]}  Nxc5 {[%clk 0:01:49]} 18. dxc5 {[%clk 0:02:07]}  Be7 {[%clk 0:01:35]} 19. Bd3 {[%clk 0:02:01]}  Rh5 {[%clk 0:01:35]} 20. Be2 {[%clk 0:02:00]}  Rh7 {[%clk 0:01:35]} 21. b4 {[%clk 0:01:54]}  Qc7 {[%clk 0:01:06]} 22. Rd3 {[%clk 0:01:46]}  Kd8 {[%clk 0:01:06]} 23. Bg4 {[%clk 0:01:41]}  Kc8 {[%clk 0:01:04]} 24. Bxf5 {[%clk 0:01:34]}  gxf5 {[%clk 0:01:05]} 25. g4 {[%clk 0:01:35]}  hxg3 {[%clk 0:01:05]} 26. Rxg3 {[%clk 0:01:30]}  Kb7 {[%clk 0:00:55]} 27. Qf3 {[%clk 0:01:07]}  Rah8 {[%clk 0:00:54]} 28. a3 {[%clk 0:01:06]}  Qd8 {[%clk 0:00:48]} 29. Bd4 {[%clk 0:01:04]}  Bh4 {[%clk 0:00:44]} 30. Rg2 {[%clk 0:01:02]}  Be7 {[%clk 0:00:38]} 31. Kb2 {[%clk 0:00:54]}  Qf8 {[%clk 0:00:39]} 32. Rg3 {[%clk 0:00:50]}  Bh4 {[%clk 0:00:38]} 33. Rg2 {[%clk 0:00:50]}  Be7 {[%clk 0:00:39]} 34. Rg3 {[%clk 0:00:45]}  Bh4 {[%clk 0:00:39]} 35. Rgg1 {[%clk 0:00:45]}  Be7 {[%clk 0:00:40]} 36. Rh2 {[%clk 0:00:46]}  Rh4 {[%clk 0:00:36]} 37. Qg3 {[%clk 0:00:36]}  Qh6 {[%clk 0:00:31]} 38. Be3 {[%clk 0:00:31]}  Rxh3 {[%clk 0:00:21]} 39. Rxh3 {[%clk 0:00:29]}  Qxh3 {[%clk 0:00:22]} 40. Qxh3 {[%clk 0:00:30]}  Rxh3 {[%clk 0:00:23]} 41. Rg7 {[%clk 0:00:29]}  Kc7 {[%clk 0:00:14]} 42. Rxf7 {[%clk 0:00:26]}  Kd7 {[%clk 0:00:14]} 43. Bf2 {[%clk 0:00:22]}  Ke8 {[%clk 0:00:14]} 44. Rg7 {[%clk 0:00:22]}  Kf8 {[%clk 0:00:12]} 45. Rg2 {[%clk 0:00:13]}  Rf3 {[%clk 0:00:09]} 46. Bg3 {[%clk 0:00:13]}  Kf7 {[%clk 0:00:09]} 47. Bh2 {[%clk 0:00:13]}  Bf8 {[%clk 0:00:08]} 48. Rg5 {[%clk 0:00:07]}  Bh6 {[%clk 0:00:07]} 49. Rh5 {[%clk 0:00:08]}  Kg6 {[%clk 0:00:07]} 50. Rh4 {[%clk 0:00:08]}  Rf2 {[%clk 0:00:04]} 51. Kc3 {[%clk 0:00:07]}  Rf3+ {[%clk 0:00:04]} 52. Kb2 {[%clk 0:00:07]}  Rf2 {[%clk 0:00:05]} 53. Rh3 {[%clk 0:00:06]}  Rf1 {[%clk 0:00:03]} 54. Rg3+ {[%clk 0:00:06]}  Kf7 {[%clk 0:00:03]} 55. Rh3 {[%clk 0:00:06]}  Kg6 {[%clk 0:00:02]} 56. Rh4 {[%clk 0:00:05]}  Rf3 {[%clk 0:00:02]} 57. Ka2 {[%clk 0:00:05]}  Rf2 {[%clk 0:00:02]} 58. Kb1 {[%clk 0:00:05]}  Rf1+ {[%clk 0:00:02]} 59. Kb2 {[%clk 0:00:05]}  Rf3 {[%clk 0:00:03]} 60. Ka2 {[%clk 0:00:05]}  Rf2 {[%clk 0:00:03]} 61. Kb1 {[%clk 0:00:05]}  Rf1+ {[%clk 0:00:04]} 62. Ka2 {[%clk 0:00:05]}  Rf3 {[%clk 0:00:04]} 63. Kb2 {[%clk 0:00:04]} 1/2-1/2


[Site "https://www.chess.com"]

[Event "Titled Tuesday Blitz February 07 Late 2023"]
[White "Maltsevskaya, Aleksandra"]
[Black "Swiercz, Dariusz"]
[WhiteFideId "24174041"]
[BlackFideId "1126881"]
[WhiteElo "2390"]
[BlackElo "2637"]
[Result "0-1"]
[Round "03"]
[TimeControl "180+2"]
[Date "2023.02.07"]
[WhiteClock "0:00:03"]
[BlackClock "0:00:11"]

1. e4 {[%clk 0:03:00]}  c6 {[%clk 0:02:58]} 2. Nc3 {[%clk 0:03:00]}  d5 {[%clk 0:02:59]} 3. Nf3 {[%clk 0:03:00]}  dxe4 {[%clk 0:02:56]} 4. Nxe4 {[%clk 0:03:01]}  Nf6 {[%clk 0:02:56]} 5. Nxf6+ {[%clk 0:02:59]}  exf6 {[%clk 0:02:57]} 6. d4 {[%clk 0:02:59]}  Bd6 {[%clk 0:02:57]} 7. Bd3 {[%clk 0:03:00]}  O-O {[%clk 0:02:57]} 8. O-O {[%clk 0:03:00]}  Re8 {[%clk 0:02:54]} 9. c3 {[%clk 0:02:59]}  Nd7 {[%clk 0:02:54]} 10. Be3 {[%clk 0:02:56]}  Nf8 {[%clk 0:02:54]} 11. h3 {[%clk 0:02:57]}  Be6 {[%clk 0:02:52]} 12. Qd2 {[%clk 0:02:57]}  Qd7 {[%clk 0:02:50]} 13. Bf4 {[%clk 0:02:57]}  Bd5 {[%clk 0:02:41]} 14. Nh2 {[%clk 0:02:43]}  Ng6 {[%clk 0:02:34]} 15. Bxd6 {[%clk 0:02:42]}  Qxd6 {[%clk 0:02:35]} 16. c4 {[%clk 0:02:38]}  Be4 {[%clk 0:02:05]} 17. Bxe4 {[%clk 0:02:32]}  Rxe4 {[%clk 0:02:06]} 18. Nf3 {[%clk 0:02:31]}  Nh4 {[%clk 0:01:58]} 19. Nxh4 {[%clk 0:02:28]}  Rxd4 {[%clk 0:01:50]} 20. Qe3 {[%clk 0:02:28]}  Rxh4 {[%clk 0:01:51]} 21. Rad1 {[%clk 0:02:27]}  Qf8 {[%clk 0:01:32]} 22. b3 {[%clk 0:02:22]}  a5 {[%clk 0:01:22]} 23. Rd7 {[%clk 0:02:21]}  b5 {[%clk 0:01:22]} 24. cxb5 {[%clk 0:02:12]}  cxb5 {[%clk 0:01:23]} 25. Qb6 {[%clk 0:01:24]}  b4 {[%clk 0:01:00]} 26. Rfd1 {[%clk 0:01:22]}  Re4 {[%clk 0:00:49]} 27. Rd8 {[%clk 0:00:47]}  Re1+ {[%clk 0:00:49]} 28. Kh2 {[%clk 0:00:26]}  Rxd1 {[%clk 0:00:49]} 29. Rxd1 {[%clk 0:00:18]}  Qb8+ {[%clk 0:00:49]} 30. Qxb8+ {[%clk 0:00:17]}  Rxb8 {[%clk 0:00:49]} 31. Rd5 {[%clk 0:00:17]}  Ra8 {[%clk 0:00:49]} 32. Rb5 {[%clk 0:00:18]}  g6 {[%clk 0:00:49]} 33. g3 {[%clk 0:00:18]}  f5 {[%clk 0:00:49]} 34. Kg2 {[%clk 0:00:18]}  Kg7 {[%clk 0:00:49]} 35. h4 {[%clk 0:00:19]}  h6 {[%clk 0:00:47]} 36. Kf3 {[%clk 0:00:19]}  Ra6 {[%clk 0:00:45]} 37. Rb7 {[%clk 0:00:19]}  Kf6 {[%clk 0:00:46]} 38. Rb5 {[%clk 0:00:19]}  Ke6 {[%clk 0:00:44]} 39. Rb8 {[%clk 0:00:18]}  Rd6 {[%clk 0:00:41]} 40. Rb5 {[%clk 0:00:17]}  Rd5 {[%clk 0:00:41]} 41. Rb6+ {[%clk 0:00:17]}  Ke5 {[%clk 0:00:42]} 42. Ke3 {[%clk 0:00:18]}  Rc5 {[%clk 0:00:34]} 43. Rb7 {[%clk 0:00:14]}  Kf6 {[%clk 0:00:27]} 44. Ra7 {[%clk 0:00:14]}  Rd5 {[%clk 0:00:23]} 45. Ra6+ {[%clk 0:00:14]}  Kg7 {[%clk 0:00:22]} 46. Ra7 {[%clk 0:00:14]}  g5 {[%clk 0:00:22]} 47. hxg5 {[%clk 0:00:14]}  hxg5 {[%clk 0:00:23]} 48. Ra6 {[%clk 0:00:15]}  f6 {[%clk 0:00:23]} 49. Ra7+ {[%clk 0:00:14]}  Kg6 {[%clk 0:00:24]} 50. Ra8 {[%clk 0:00:15]}  Re5+ {[%clk 0:00:19]} 51. Kd3 {[%clk 0:00:16]}  Rc5 {[%clk 0:00:20]} 52. Kd4 {[%clk 0:00:15]}  Rc2 {[%clk 0:00:19]} 53. f4 {[%clk 0:00:12]}  Rxa2 {[%clk 0:00:17]} 54. Ra6 {[%clk 0:00:12]}  g4 {[%clk 0:00:14]} 55. Kd5 {[%clk 0:00:09]}  Rb2 {[%clk 0:00:11]} 56. Kc4 {[%clk 0:00:04]}  Rc2+ {[%clk 0:00:11]} 57. Kb5 {[%clk 0:00:02]}  Rc3 {[%clk 0:00:12]} 58. Ka4 {[%clk 0:00:02]}  Rxg3 {[%clk 0:00:12]} 59. Rxa5 {[%clk 0:00:03]}  Rf3 {[%clk 0:00:12]} 60. Ra8 {[%clk 0:00:02]}  Rxf4 {[%clk 0:00:11]} 61. Kb5 {[%clk 0:00:03]}  Kg5 {[%clk 0:00:10]} 62. Rg8+ {[%clk 0:00:03]}  Kh4 {[%clk 0:00:11]} 0-1


[Site "https://www.chess.com"]

[Event "Titled Tuesday Blitz February 07 Late 2023"]
[White "Zhigalko, Sergei"]
[Black "Kavutskiy, Konstantin"]
[WhiteFideId "13502956"]
[BlackFideId "2026384"]
[WhiteElo "2572"]
[BlackElo "2414"]
[Result "1-0"]
[Round "03"]
[TimeControl "180+2"]
[Date "2023.02.07"]
[WhiteClock "0:00:04"]
[BlackClock "0:00:06"]

1. e4 {[%clk 0:03:00]}  Nc6 {[%clk 0:02:57]} 2. Nf3 {[%clk 0:03:00]}  d6 {[%clk 0:02:57]} 3. d4 {[%clk 0:03:00]}  Nf6 {[%clk 0:02:57]} 4. Nc3 {[%clk 0:02:59]}  g6 {[%clk 0:02:57]} 5. Bb5 {[%clk 0:02:58]}  a6 {[%clk 0:02:56]} 6. Bxc6+ {[%clk 0:02:58]}  bxc6 {[%clk 0:02:57]} 7. O-O {[%clk 0:02:58]}  Bg7 {[%clk 0:02:57]} 8. h3 {[%clk 0:02:58]}  O-O {[%clk 0:02:57]} 9. Re1 {[%clk 0:02:58]}  Rb8 {[%clk 0:02:55]} 10. b3 {[%clk 0:02:58]}  c5 {[%clk 0:02:52]} 11. e5 {[%clk 0:02:56]}  Nd7 {[%clk 0:02:39]} 12. Bg5 {[%clk 0:02:55]}  Re8 {[%clk 0:02:14]} 13. Nd5 {[%clk 0:02:01]}  c6 {[%clk 0:01:59]} 14. Nf4 {[%clk 0:01:12]}  cxd4 {[%clk 0:01:06]} 15. exd6 {[%clk 0:01:01]}  Nf6 {[%clk 0:00:55]} 16. dxe7 {[%clk 0:00:47]}  Rxe7 {[%clk 0:00:56]} 17. Rxe7 {[%clk 0:00:46]}  Qxe7 {[%clk 0:00:57]} 18. Qxd4 {[%clk 0:00:45]}  c5 {[%clk 0:00:49]} 19. Qc4 {[%clk 0:00:12]}  Qe4 {[%clk 0:00:34]} 20. Rd1 {[%clk 0:00:11]}  Bf5 {[%clk 0:00:24]} 21. Qxc5 {[%clk 0:00:09]}  Qxc2 {[%clk 0:00:22]} 22. Qxc2 {[%clk 0:00:09]}  Bxc2 {[%clk 0:00:23]} 23. Rc1 {[%clk 0:00:07]}  Be4 {[%clk 0:00:22]} 24. Nd2 {[%clk 0:00:06]}  Bf5 {[%clk 0:00:18]} 25. Bxf6 {[%clk 0:00:03]}  Bxf6 {[%clk 0:00:18]} 26. Nd5 {[%clk 0:00:04]}  Bg5 {[%clk 0:00:16]} 27. f4 {[%clk 0:00:04]}  Bh4 {[%clk 0:00:14]} 28. Nc4 {[%clk 0:00:03]}  Be6 {[%clk 0:00:12]} 29. Nde3 {[%clk 0:00:03]}  Rd8 {[%clk 0:00:10]} 30. Rd1 {[%clk 0:00:03]}  Rxd1+ {[%clk 0:00:09]} 31. Nxd1 {[%clk 0:00:03]}  Bg3 {[%clk 0:00:05]} 32. Nc3 {[%clk 0:00:02]}  Bxc4 {[%clk 0:00:04]} 33. bxc4 {[%clk 0:00:02]}  Bxf4 {[%clk 0:00:05]} 34. Kf2 {[%clk 0:00:02]}  Kf8 {[%clk 0:00:05]} 35. Kf3 {[%clk 0:00:02]}  Bb8 {[%clk 0:00:05]} 36. Ke4 {[%clk 0:00:03]}  Ke7 {[%clk 0:00:05]} 37. Kd5 {[%clk 0:00:03]}  Kf6 {[%clk 0:00:05]} 38. c5 {[%clk 0:00:03]}  Kf5 {[%clk 0:00:05]} 39. Ne2 {[%clk 0:00:02]}  h5 {[%clk 0:00:03]} 40. Nd4+ {[%clk 0:00:02]}  Kf4 {[%clk 0:00:03]} 41. Nc6 {[%clk 0:00:02]}  Bc7 {[%clk 0:00:04]} 42. Nb4 {[%clk 0:00:03]}  a5 {[%clk 0:00:03]} 43. Na6 {[%clk 0:00:03]}  Be5 {[%clk 0:00:04]} 44. c6 {[%clk 0:00:02]}  f5 {[%clk 0:00:04]} 45. Nc5 {[%clk 0:00:02]}  Bc7 {[%clk 0:00:04]} 46. Ne6+ {[%clk 0:00:02]}  Kg3 {[%clk 0:00:04]} 47. Nxc7 {[%clk 0:00:03]}  Kxg2 {[%clk 0:00:05]} 48. Ne6 {[%clk 0:00:03]}  f4 {[%clk 0:00:06]} 49. Nxf4+ {[%clk 0:00:04]} 1-0


[Site "https://www.chess.com"]